Workbook

Sheet ESF_DET
H1: ASEC_ESFD_2doTRIM_O2
B2: Nombre del Ente Público a) JUNTA MUNICIPAL DE AGUAS Y SANEAMIENTO DE BUENAVENTURA
B3: Estado de Situación Financiera Detallado - LDF
B4: Al 31 de Diciembre de 2022 y al 31 de Diciembre de 2021 (b)
B5: (PESOS)
B6: Concepto (c) | C6: 2022 (d) | D6: 31 de diciembre de 2021 (e) | E6: Concepto (c) | F6: 2022 (d) | G6: 31 de diciembre de 2021 (e)
B7: ACTIVO | E7: PASIVO
B8: Activo Circulante | E8: Pasivo Circulante
B9: a. Efectivo y Equivalentes (a=a1+a2+a3+a4+a5+a6+a7) | C9: =SUM(C10:C16) -> 878302 | D9: =SUM(D10:D16) -> 999857 | E9: a. Cuentas por Pagar a Corto Plazo (a=a1+a2+a3+a4+a5+a6+a7+a8+a9) | F9: =SUM(F10:F18) -> 5456719 | G9: =SUM(G10:G18) -> 5598891
B10: a1) Efectivo | C10: 1477 | D10: 1978 | E10: a1) Servicios Personales por Pagar a Corto Plazo | F10: 0 | G10: 0
B11: a2) Bancos/Tesorería | C11: 873676 | D11: 994730 | E11: a2) Proveedores por Pagar a Corto Plazo | F11: 0 | G11: 0
B12: a3) Bancos/Dependencias y Otros | C12: 0 | D12: 0 | E12: a3) Contratistas por Obras Públicas por Pagar a Corto Plazo | F12: 0 | G12: 0
B13: a4) Inversiones Temporales (Hasta 3 meses) | C13: 3149 | D13: 3149 | E13: a4) Participaciones y Aportaciones por Pagar a Corto Plazo | F13: 0 | G13: 0
B14: a5) Fondos con Afectación Específica | C14: 0 | D14: 0 | E14: a5) Transferencias Otorgadas por Pagar a Corto Plazo | F14: 0 | G14: 0
B15: a6) Depósitos de Fondos de Terceros en Garantía y/o Administración | C15: 0 | D15: 0 | E15: a6) Intereses, Comisiones y Otros Gastos de la Deuda Pública por Pagar a Corto Plazo | F15: 0 | G15: 0
B16: a7) Otros Efectivos y Equivalentes | C16: 0 | D16: 0 | E16: a7) Retenciones y Contribuciones por Pagar a Corto Plazo | F16: 0 | G16: 0
B17: b. Derechos a Recibir Efectivo o Equivalentes (b=b1+b2+b3+b4+b5+b6+b7) | C17: =SUM(C18:C24) -> 261483 | D17: =SUM(D18:D24) -> 190450 | E17: a8) Devoluciones de la Ley de Ingresos por Pagar a Corto Plazo | F17: 0 | G17: 0
B18: b1) Inversiones Financieras de Corto Plazo | C18: 0 | D18: 0 | E18: a9) Otras Cuentas por Pagar a Corto Plazo | F18: 5456719 | G18: 5598891
B19: b2) Cuentas por Cobrar a Corto Plazo | C19: 0 | D19: 0 | E19: b. Documentos por Pagar a Corto Plazo (b=b1+b2+b3) | F19: =SUM(F20:F22) -> 0 | G19: =SUM(G20:G22) -> 0
B20: b3) Deudores Diversos por Cobrar a Corto Plazo | C20: 261483 | D20: 190450 | E20: b1) Documentos Comerciales por Pagar a Corto Plazo | F20: 0 | G20: 0
B21: b4) Ingresos por Recuperar a Corto Plazo | C21: 0 | D21: 0 | E21: b2) Documentos con Contratistas por Obras Públicas por Pagar a Corto Plazo | F21: 0 | G21: 0
B22: b5) Deudores por Anticipos de la Tesorería a Corto Plazo | C22: 0 | D22: 0 | E22: b3) Otros Documentos por Pagar a Corto Plazo | F22: 0 | G22: 0
B23: b6) Préstamos Otorgados a Corto Plazo | C23: 0 | D23: 0 | E23: c. Porción a Corto Plazo de la Deuda Pública a Largo Plazo (c=c1+c2) | F23: =SUM(F24:F25) -> 0 | G23: =SUM(G24:G25) -> 0
B24: b7) Otros Derechos a Recibir Efectivo o Equivalentes a Corto Plazo | C24: 0 | D24: 0 | E24: c1) Porción a Corto Plazo de la Deuda Pública | F24: 0 | G24: 0
B25: c. Derechos a Recibir Bienes o Servicios (c=c1+c2+c3+c4+c5) | C25: =SUM(C26:C30) -> 4234866 | D25: =SUM(D26:D30) -> 3858283 | E25: c2) Porción a Corto Plazo de Arrendamiento Financiero | F25: 0 | G25: 0
B26: c1) Anticipo a Proveedores por Adquisición de Bienes y Prestación de Servicios a Corto Plazo | C26: 0 | D26: 0 | E26: d. Títulos y Valores a Corto Plazo | F26: 0 | G26: 0
B27: c2) Anticipo a Proveedores por Adquisición de Bienes Inmuebles y Muebles a Corto Plazo | C27: 0 | D27: 0 | E27: e. Pasivos Diferidos a Corto Plazo (e=e1+e2+e3) | F27: =SUM(F28:F30) -> 0 | G27: =SUM(G28:G30) -> 0
B28: c3) Anticipo a Proveedores por Adquisición de Bienes Intangibles a Corto Plazo | C28: 0 | D28: 0 | E28: e1) Ingresos Cobrados por Adelantado a Corto Plazo | F28: 0 | G28: 0
B29: c4) Anticipo a Contratistas por Obras Públicas a Corto Plazo | C29: 0 | D29: 0 | E29: e2) Intereses Cobrados por Adelantado a Corto Plazo | F29: 0 | G29: 0
B30: c5) Otros Derechos a Recibir Bienes o Servicios a Corto Plazo | C30: 4234866 | D30: 3858283 | E30: e3) Otros Pasivos Diferidos a Corto Plazo | F30: 0 | G30: 0
B31: d. Inventarios (d=d1+d2+d3+d4+d5) | C31: =SUM(C32:C36) -> 0 | D31: =SUM(D32:D36) -> 0 | E31: f. Fondos y Bienes de Terceros en Garantía y/o Administración a Corto Plazo (f=f1+f2+f3+f4+f5+f6) | F31: =SUM(F32:F37) -> 0 | G31: =SUM(G32:G37) -> 0
B32: d1) Inventario de Mercancías para Venta | C32: 0 | D32: 0 | E32: f1) Fondos en Garantía a Corto Plazo | F32: 0 | G32: 0
B33: d2) Inventario de Mercancías Terminadas | C33: 0 | D33: 0 | E33: f2) Fondos en Administración a Corto Plazo | F33: 0 | G33: 0
B34: d3) Inventario de Mercancías en Proceso de Elaboración | C34: 0 | D34: 0 | E34: f3) Fondos Contingentes a Corto Plazo | F34: 0 | G34: 0
B35: d4) Inventario de Materias Primas, Materiales y Suministros para Producción | C35: 0 | D35: 0 | E35: f4) Fondos de Fideicomisos, Mandatos y Contratos Análogos a Corto Plazo | F35: 0 | G35: 0
B36: d5) Bienes en Tránsito | C36: 0 | D36: 0 | E36: f5) Otros Fondos de Terceros en Garantía y/o Administración a Corto Plazo | F36: 0 | G36: 0
B37: e. Almacenes | C37: 0 | D37: 0 | E37: f6) Valores y Bienes en Garantía a Corto Plazo | F37: 0 | G37: 0
B38: f. Estimación por Pérdida o Deterioro de Activos Circulantes (f=f1+f2) | C38: =SUM(C39:C40) -> 0 | D38: =SUM(D39:D40) -> 0 | E38: g. Provisiones a Corto Plazo (g=g1+g2+g3) | F38: =SUM(F39:F41) -> 0 | G38: =SUM(G39:G41) -> 0
B39: f1) Estimaciones para Cuentas Incobrables por Derechos a Recibir Efectivo o Equivalentes | C39: 0 | D39: 0 | E39: g1) Provisión para Demandas y Juicios a Corto Plazo | F39: 0 | G39: 0
B40: f2) Estimación por Deterioro de Inventarios | C40: 0 | D40: 0 | E40: g2) Provisión para Contingencias a Corto Plazo | F40: 0 | G40: 0
B41: g. Otros Activos Circulantes (g=g1+g2+g3+g4) | C41: =SUM(C42:C45) -> 0 | D41: =SUM(D42:D45) -> 0 | E41: g3) Otras Provisiones a Corto Plazo | F41: 0 | G41: 0
B42: g1) Valores en Garantía | C42: 0 | D42: 0 | E42: h. Otros Pasivos a Corto Plazo (h=h1+h2+h3) | F42: =SUM(F43:F45) -> 0 | G42: =SUM(G43:G45) -> 0
B43: g2) Bienes en Garantía (excluye depósitos de fondos) | C43: 0 | D43: 0 | E43: h1) Ingresos por Clasificar | F43: 0 | G43: 0
B44: g3) Bienes Derivados de Embargos, Decomisos, Aseguramientos y Dación en Pago | C44: 0 | D44: 0 | E44: h2) Recaudación por Participar | F44: 0 | G44: 0
B45: g4) Adquisición con Fondos de Terceros | C45: 0 | D45: 0 | E45: h3) Otros Pasivos Circulantes | F45: 0 | G45: 0
B47: IA. Total de Activos Circulantes (IA = a + b + c + d + e + f + g) | C47: =SUM(C41,C38,C37,C31,C25,C17,C9) -> 5374651 | D47: =SUM(D41,D38,D37,D31,D25,D17,D9) -> 5048590 | E47: IIA. Total de Pasivos Circulantes (IIA = a + b + c + d + e + f + g + h) | F47: =SUM(F42,F38,F31,F27,F26,F23,F19,F9) -> 5456719 | G47: =SUM(G42,G38,G31,G27,G26,G23,G19,G9) -> 5598891
B49: Activo No Circulante | E49: Pasivo No Circulante
B50: a. Inversiones Financieras a Largo Plazo | C50: 0 | D50: 0 | E50: a. Cuentas por Pagar a Largo Plazo | F50: 0 | G50: 0
B51: b. Derechos a Recibir Efectivo o Equivalentes a Largo Plazo | C51: 0 | D51: 0 | E51: b. Documentos por Pagar a Largo Plazo | F51: 0 | G51: 0
B52: c. Bienes Inmuebles, Infraestructura y Construcciones en Proceso | C52: 54761179 | D52: 54350802 | E52: c. Deuda Pública a Largo Plazo | F52: 0 | G52: 0
B53: d. Bienes Muebles | C53: 1480747 | D53: 1456230 | E53: d. Pasivos Diferidos a Largo Plazo | F53: 0 | G53: 0
B54: e. Activos Intangibles | C54: 304696 | D54: 134838 | E54: e. Fondos y Bienes de Terceros en Garantía y/o en Administración a Largo Plazo | F54: 0 | G54: 0
B55: f. Depreciación, Deterioro y Amortización Acumulada de Bienes | C55: 0 | D55: 0 | E55: f. Provisiones a Largo Plazo | F55: 0 | G55: 0
B56: g. Activos Diferidos | C56: 0 | D56: 0
B57: h. Estimación por Pérdida o Deterioro de Activos no Circulantes | C57: 0 | D57: 0 | E57: IIB. Total de Pasivos No Circulantes (IIB = a + b + c + d + e + f) | F57: =SUM(F50:F55) -> 0 | G57: =SUM(G50:G55) -> 0
B58: i. Otros Activos no Circulantes | C58: 0 | D58: 0
E59: II. Total del Pasivo (II = IIA + IIB) | F59: =SUM(F47,F57) -> 5456719 | G59: =SUM(G47,G57) -> 5598891
B60: IB. Total de Activos No Circulantes (IB = a + b + c + d + e + f + g + h + i) | C60: =SUM(C50:C58) -> 56546622 | D60: =SUM(D50:D58) -> 55941870
E61: HACIENDA PÚBLICA/PATRIMONIO
B62: I. Total del Activo (I = IA + IB) | C62: =SUM(C47,C60) -> 61921273 | D62: =SUM(D47,D60) -> 60990460
E63: IIIA. Hacienda Pública/Patrimonio Contribuido (IIIA = a + b + c) | F63: =SUM(F64:F66) -> 62345521 | G63: =SUM(G64:G66) -> 62345521
E64: a. Aportaciones | F64: 62345521 | G64: 62345521
E65: b. Donaciones de Capital | F65: 0 | G65: 0
E66: c. Actualización de la Hacienda Pública/Patrimonio | F66: 0 | G66: 0
E68: IIIB. Hacienda Pública/Patrimonio Generado (IIIB = a + b + c + d + e) | F68: =SUM(F69:F73) -> -5880967 | G68: =SUM(G69:G73) -> -6953952
E69: a. Resultados del Ejercicio (Ahorro/ Desahorro) | F69: 1072984 | G69: 528494
E70: b. Resultados de Ejercicios Anteriores | F70: -7337518 | G70: -7866013
E71: c. Revalúos | F71: 383567 | G71: 383567
E72: d. Reservas | F72: 0 | G72: 0
E73: e. Rectificaciones de Resultados de Ejercicios Anteriores | F73: 0 | G73: 0
E75: IIIC. Exceso o Insuficiencia en la Actualización de la Hacienda Pública/Patrimonio (IIIC=a+b) | F75: =SUM(F76:F77) -> 0 | G75: =SUM(G76:G77) -> 0
E76: a. Resultado por Posición Monetaria | F76: 0 | G76: 0
E77: b. Resultado por Tenencia de Activos no Monetarios | F77: 0 | G77: 0
E79: III. Total Hacienda Pública/Patrimonio (III = IIIA + IIIB + IIIC) | F79: =SUM(F63,F68,F75) -> 56464554 | G79: =SUM(G63,G68,G75) -> 55391569
E81: IV. Total del Pasivo y Hacienda Pública/Patrimonio (IV = II + III) | F81: =SUM(F59,F79) -> 61921273 | G81: =SUM(G59,G79) -> 60990460
B89: C.HILDA VEGA BASOCO | E89: ING.DORA MINEE ARREOLA DOZAL
B90: DIRECTORA FINANCIERA | E90: DIRECTORA EJECUTIVA
B93: “Declaro salvo decir verdad que la información contenida en el presente documento es de mi responsabilidad y que todos los saldos aquí reflejados, fueron analizados en su totalidad”
